bitfinex-derivatives/quotes_SOLF0:USTF0_20250421
["timestamp","ask_amount","ask_price","bid_price","bid_amount"]
[1745256703021,365.0,135.4,135.34,33.76]
[1745256703418,372.3849,135.4,135.35,7.387]
[1745256703622,365.0,135.4,135.34,33.76]
[1745256703930,372.3849,135.4,135.35,7.3872]
[1745256704130,0.0549852,135.38,135.36,0.05516896]
[1745256705231,7.3862,135.37,135.32,7.3887]
[1745256705429,7.3862,135.37,135.31,33.76]
[1745256705624,7.3862,135.37,135.32,7.3886]
[1745256705825,0.0549852,135.38,135.31,33.76]
[1745256706027,0.0549852,135.38,135.31,41.1491]
[1745256706326,0.0549852,135.38,135.33,0.0539067]
[1745256706930,7.3865,135.37,135.33,0.0539067]
[1745256707124,0.0549852,135.38,135.35,7.3869]
[1745256707430,0.0549852,135.38,135.33,0.0539067]
[1745256708330,0.0549852,135.38,135.37,7.3862]
[1745256708925,4.2456,135.44,135.36,33.81461589]
[1745256709424,365.0,135.46,135.36,33.81461589]
[1745256709729,365.0,135.46,135.38,28.07329503]
[1745256710131,0.05404872,135.43,135.41,0.05184475]
[1745256710729,0.05404872,135.43,135.42,7.383]
[1745256711133,0.05404872,135.43,135.41,7.43544475]
[1745256711530,0.05404872,135.43,135.41,0.05184475]
[1745256713936,7.43704872,135.43,135.41,0.05184475]
[1745256714231,0.05404872,135.43,135.41,7.43544475]
[1745256715035,0.05404872,135.43,135.42,7.3835]
[1745256716929,0.05404872,135.43,135.41,33.71184475]
[1745256717337,0.05404872,135.43,135.41,41.09584475]
[1745256719233,0.05404872,135.43,135.42,7.3835]
[1745256720535,365.0,135.46,135.45,7.3819]
[1745256721333,28.07329503,135.51,135.45,7.3819]
[1745256721534,0.04916796,135.47,135.45,33.66]
[1745256721840,11.30849773,135.52,135.45,33.66]
[1745256722031,8.4572,135.52,135.45,33.66]
[1745256722638,8.4572,135.52,135.49,7.3794]
[1745256722936,8.51365405,135.52,135.49,0.04887609]
[1745256723135,8.51365405,135.52,135.49,7.42847609]
[1745256723339,4.29945405,135.52,135.49,7.42847609]
[1745256723539,4.29945405,135.52,135.49,0.04887609]
[1745256723734,7.3791,135.5,135.49,0.04887609]
[1745256723936,4.29945405,135.52,135.49,0.04887609]
[1745256725436,32.37274908,135.52,135.45,33.66]
[1745256725628,28.07329503,135.49,135.41,33.64]
[1745256725830,367.84978796,135.51,135.38,33.64]
[1745256725831,28.07329503,135.46,135.38,33.64]
[1745256726136,3.981,135.45,135.38,33.64]
[1745256726334,7.3827,135.44,135.38,33.64]
[1745256726533,3.981,135.45,135.38,33.64]
[1745256726738,0.05368978,135.42,135.4,0.05333851]
[1745256727239,7.385,135.4,135.35,33.64]
[1745256727434,2.84916905,135.42,135.35,33.64]
[1745256727737,7.385,135.4,135.36,7.3865]
[1745256727929,2.84916905,135.42,135.35,33.64]
[1745256728238,7.3846,135.4,135.36,7.3865]
[1745256728438,0.0546142,135.4,135.37,0.04847029]
[1745256728635,28.07329503,135.38,135.23,33.64]
[1745256728832,7.3884,135.33,135.24,3.9495]
[1745256729036,28.07329503,135.35,135.24,3.9495]
[1745256729338,7.3891,135.32,135.27,7.3917]
[1745256729539,7.3891,135.32,135.24,3.9495]
[1745256729839,0.04653945,135.31,135.28,0.05327049]
[1745256731236,7.43613945,135.31,135.28,0.05327049]
[1745256731742,7.43613945,135.31,135.23,33.64]
[1745256731743,0.04653945,135.31,135.23,33.64]
[1745256732042,2.89439683,135.31,135.23,33.64]
[1745256732340,0.04653945,135.31,135.23,33.64]
[1745256732642,0.04653945,135.31,135.25,28.07329503]
[1745256732839,0.04653945,135.31,135.26,0.05212679]
[1745256733038,365.0,135.34,135.26,0.05212679]
[1745256733039,28.07329503,135.33,135.26,0.05212679]
[1745256733234,28.07329503,135.3,135.26,0.05212679]
[1745256733439,7.3916,135.28,135.26,0.05212679]
[1745256733642,28.07329503,135.3,135.2,33.66]
[1745256734044,28.07329503,135.3,135.22,7.3943]
[1745256734045,7.3915,135.28,135.22,7.3943]
[1745256734243,3.9772,135.29,135.2,33.66]
[1745256734842,0.05235411,135.26,135.23,0.05340677]
[1745256735145,0.05235411,135.26,135.24,41.0531]
[1745256735336,0.05235411,135.26,135.24,33.66]
[1745256735945,0.05235411,135.26,135.24,41.0533]
[1745256736444,0.05235411,135.26,135.24,33.66]
[1745256737547,0.05235411,135.26,135.23,0.05340677]
[1745256738750,0.05235411,135.26,135.23,7.44690677]
[1745256740750,0.05235411,135.26,135.23,0.05340677]
[1745256741652,365.0,135.32,135.23,620.7267018]
[1745256741845,365.0,135.32,135.27,28.07329503]
[1745256742046,7.3871,135.36,135.28,33.68]
[1745256742346,7.3871,135.36,135.31,7.3891]
[1745256742549,8.0736,135.37,135.29,61.75329503]
[1745256742743,0.04841375,135.35,135.32,0.05522188]
[1745256743651,7.388,135.34,135.32,0.05522188]
[1745256743841,0.04841375,135.35,135.32,0.05522188]
[1745256745255,28.12170878,135.35,135.29,33.68]
[1745256745446,28.12170878,135.35,135.26,33.68]
[1745256745750,28.07329503,135.32,135.26,33.68]
[1745256745951,373.34,135.31,135.26,33.68]
[1745256746151,373.34,135.31,135.23,618.8]
[1745256746346,0.04880209,135.3,135.27,0.04918251]
[1745256746550,28.07329503,135.29,135.27,0.04918251]
[1745256746845,35.46429503,135.29,135.27,0.04918251]
[1745256747153,28.07329503,135.29,135.27,0.04918251]
[1745256747450,7.3911,135.28,135.27,0.04918251]
[1745256747846,28.07329503,135.29,135.27,0.04918251]
[1745256748154,28.07329503,135.29,135.2,33.6]
[1745256748350,365.0,135.28,135.2,33.6]
[1745256748551,7.3925,135.26,135.22,7.3941]
[1745256748951,365.0,135.28,135.2,61.67329503]
[1745256749152,365.0,135.28,135.25,7.3923]
[1745256749354,7.3907,135.29,135.25,7.3923]
[1745256749555,0.05257921,135.28,135.26,7.3922]
[1745256749758,0.05257921,135.28,135.24,33.6]
[1745256750054,0.05257921,135.28,135.26,0.05412843]
[1745256750355,0.05257921,135.28,135.27,7.3917]
[1745256750751,365.0,135.32,135.26,28.12742346]
[1745256751054,393.07329503,135.39,135.26,28.12742346]
[1745256751244,7.3859,135.38,135.33,7.388]
[1745256751446,369.0185,135.39,135.33,7.388]
[1745256751849,7.44033788,135.37,135.35,0.05565615]
[1745256752153,7.44033788,135.37,135.32,33.6]
[1745256752154,0.05373788,135.37,135.32,40.9887]
[1745256752357,28.07329503,135.36,135.29,33.6]
[1745256752745,7.3883,135.34,135.29,40.9902]
[1745256753055,7.3883,135.34,135.29,33.6]
[1745256753355,0.04841156,135.33,135.3,0.05171164]
[1745256753957,0.04841156,135.33,135.3,7.44171164]
[1745256754758,0.04841156,135.33,135.3,0.05171164]
[1745256755246,7.389,135.32,135.3,0.05171164]
[1745256762156,7.3895,135.31,135.3,0.05171164]
[1745256762562,8.2367,135.32,135.26,33.6]
[1745256762858,28.07329503,135.27,135.21,33.6]
[1745256763262,7.3931,135.25,135.21,33.6]
[1745256763559,28.07329503,135.27,135.21,33.6]
[1745256763859,7.3939,135.23,135.22,0.05664234]
[1745256764057,0.04708474,135.24,135.22,0.05664234]
[1745256764251,0.04708474,135.24,135.18,33.6]
[1745256764450,365.0,135.23,135.16,585.24]
[1745256765057,7.3955,135.2,135.17,7.3969]
[1745256765257,365.0,135.23,135.16,585.24]
[1745256765458,0.0527393,135.19,135.17,7.445427]
[1745256765849,0.0527393,135.19,135.17,0.048627]
[1745256766259,0.0527393,135.19,135.18,7.3966]
[1745256767159,0.0527393,135.19,135.17,7.445527]
[1745256767562,0.0527393,135.19,135.18,7.3966]
[1745256770067,365.0,135.23,135.21,7.3944]
[1745256770261,7.9195,135.25,135.2,33.62]
[1745256770461,7.9195,135.25,135.21,7.3946]
[1745256770664,2.86633125,135.24,135.2,33.62]
[1745256770959,2.86604311,135.23,135.17,33.62]
[1745256771166,0.04868944,135.23,135.21,0.05175915]
[1745256771558,0.04868944,135.23,135.17,33.62]
[1745256771762,2.86852405,135.22,135.17,33.62]
[1745256771962,0.04868944,135.23,135.17,33.62]
[1745256772162,10.26239231,135.22,135.18,7.3965]
[1745256772461,7.3947,135.22,135.18,7.3965]
[1745256772663,2.86890593,135.21,135.18,7.3965]
[1745256772858,7.3947,135.22,135.19,0.05571251]
[1745256773055,2.86732622,135.21,135.19,0.05571251]
[1745256773263,7.3947,135.22,135.19,7.45171251]
[1745256773464,2.86840056,135.21,135.19,7.45171251]
[1745256773664,2.86840056,135.2,135.19,0.05571251]
[1745256774463,2.86657588,135.2,135.19,0.05571251]
[1745256774664,10.26207588,135.2,135.19,0.05571251]
[1745256774861,10.26207588,135.2,135.17,7.3969]
[1745256775058,7.3955,135.2,135.17,7.3969]
[1745256775260,7.3964,135.19,135.16,7.3976]
[1745256776066,7.44839329,135.19,135.16,7.44619931]
[1745256776767,0.05199329,135.19,135.16,0.04859931]
[1745256777369,0.05199329,135.19,135.16,7.44599931]
[1745256777870,7.44819329,135.19,135.16,7.44599931]
[1745256778870,7.44819329,135.19,135.16,0.04859931]
[1745256779369,7.44819329,135.19,135.16,7.44599931]
[1745256780570,7.44819329,135.19,135.16,0.04859931]
[1745256780571,7.3969,135.18,135.16,0.04859931]
[1745256781170,7.3972,135.17,135.16,0.04859931]
[1745256782067,7.3986,135.15,135.11,33.54]
[1745256782267,405.49139503,135.18,135.11,33.54]
[1745256782671,7.3984,135.15,135.11,33.54]
[1745256782872,7.3984,135.15,135.12,7.3996]
[1745256783173,7.3984,135.15,135.11,33.54]
[1745256783363,7.45311114,135.15,135.12,0.04913773]
[1745256783865,7.3988,135.14,135.12,0.04913773]
[1745256784068,0.05471114,135.15,135.12,0.04913773]
[1745256784971,365.0,135.14,135.02,585.76]
[1745256785176,28.07329503,135.12,135.04,33.54]
[1745256785473,28.07329503,135.12,135.05,7.4035]
[1745256785669,3.867,135.11,135.04,33.54]
[1745256785870,28.07329503,135.12,135.04,33.54]
[1745256786070,365.0,135.13,135.04,33.54]
[1745256786274,0.04980176,135.09,135.06,0.05132276]
[1745256786474,3.867,135.16,135.12,7.3998]
[1745256786669,3.867,135.16,135.09,33.54]
[1745256787071,3.867,135.16,135.11,7.4002]
[1745256787271,11.265,135.16,135.11,7.4002]
[1745256787476,369.0086,135.17,135.13,7.3993]
[1745256787774,0.05379,135.15,135.12,0.05408563]
[1745256788578,0.05379,135.15,135.12,7.45368563]
[1745256789076,7.45209,135.15,135.12,7.45368563]
[1745256790980,0.05379,135.15,135.13,7.3993]
[1745256791378,0.05379,135.15,135.12,0.05408563]
[1745256791574,7.45229,135.15,135.12,7.45358563]
[1745256791779,0.05379,135.15,135.12,0.05408563]
[1745256792286,28.12708503,135.15,135.12,0.05408563]
[1745256792777,7.3993,135.13,135.12,0.05408563]
[1745256792983,28.07329503,135.12,135.06,33.56]
[1745256793381,7.4018,135.09,135.06,7.403]
[1745256793582,28.07329503,135.12,135.03,33.56]
[1745256793878,365.0,135.13,135.03,33.56]
[1745256794082,0.05022947,135.09,135.06,0.04771235]
[1745256794282,365.0,135.13,135.06,0.04771235]
[1745256794283,365.0,135.13,135.07,33.56]
[1745256794480,365.0,135.13,135.1,7.4006]
[1745256795091,372.3994,135.13,135.1,7.4006]
[1745256795391,365.0536898,135.13,135.1,0.0532058]
[1745256795892,7.4011,135.1,135.07,33.56]
[1745256796992,7.44982648,135.1,135.07,33.61587006]
[1745256797592,0.04872648,135.1,135.07,41.01837006]
[1745256798193,7.44972648,135.1,135.07,33.61587006]
[1745256798491,0.04872648,135.1,135.07,0.05587006]
[1745256799892,0.04872648,135.1,135.07,7.45817006]
[1745256800693,0.04872648,135.1,135.07,0.05587006]
[1745256800993,7.44982648,135.1,135.07,0.05587006]
[1745256801189,0.04872648,135.1,135.07,0.05587006]
[1745256802095,7.402,135.09,135.07,0.05587006]
[1745256802499,0.04872648,135.1,135.07,0.05587006]
[1745256802694,7.402,135.09,135.07,0.05587006]
[1745256803600,0.04872648,135.1,135.07,0.05587006]
[1745256804499,28.07329503,135.09,135.07,0.05587006]
[1745256805401,7.4021,135.08,135.07,0.05587006]
[1745256805598,393.07329503,135.09,135.02,585.76]
[1745256805805,28.07329503,135.06,135.02,585.76]
[1745256805998,28.07329503,135.06,135.01,40.9658]
[1745256806301,28.07329503,135.06,135.01,33.56]
[1745256806600,7.4047,135.04,135.01,33.56]
[1745256806791,7.4047,135.04,135.02,0.04371082]
[1745256806996,0.04807029,135.05,135.02,0.04371082]
[1745256807401,28.07329503,135.03,134.98,33.48]
[1745256807602,28.07329503,135.03,134.98,40.8873]
[1745256807802,28.07329503,135.03,134.98,33.48]
[1745256808204,28.07329503,135.03,134.97,7.4076]
[1745256808402,0.05243129,135.0,134.95,619.64]
[1745256808600,28.12572632,135.0,134.95,619.64]
[1745256808802,7.4081,134.97,134.95,33.5]
[1745256809607,28.12572632,135.0,134.95,33.5]
[1745256809608,7.4078,134.98,134.95,33.5]
[1745256810100,7.45933129,135.0,134.96,7.4086]
[1745256810306,0.05243129,135.0,134.95,33.5]
[1745256810507,7.4073,134.99,134.95,40.9091]
[1745256810808,28.07329503,134.99,134.92,37.7498]
[1745256811309,0.04936225,134.97,134.95,7.4092]
[1745256811808,0.04936225,134.97,134.92,33.5]
[1745256812208,0.04936225,134.97,134.95,7.4088]
[1745256813711,0.04936225,134.97,134.94,7.4094]
[1745256814711,0.04936225,134.97,134.95,7.4092]
[1745256815113,0.04936225,134.97,134.92,33.5]
[1745256815311,0.04936225,134.97,134.95,7.4089]
[1745256816313,0.04936225,134.97,134.96,7.4087]
[1745256818017,365.0,135.01,135.0,7.4065]
[1745256818311,393.07329503,135.06,134.97,4.0436]
[1745256818810,7.4056,135.02,134.96,33.5]
[1745256819111,28.07329503,135.03,134.96,33.5]
[1745256819311,0.04683253,135.0,134.98,0.04928214]
[1745256821518,0.04683253,135.0,134.99,7.407]
[1745256822220,0.04683253,135.0,134.98,7.45668214]
[1745256822419,0.04683253,135.0,134.98,0.04928214]
[1745256822818,7.45353253,135.0,134.98,0.04928214]
[1745256823318,0.04683253,135.0,134.98,0.04928214]
[1745256826526,0.04683253,135.0,134.99,7.407]
[1745256828125,0.04683253,135.0,134.98,7.45668214]
[1745256828526,0.04683253,135.0,134.98,0.04928214]
[1745256828741,7.407,134.99,134.98,0.04928214]
[1745256829027,28.12012756,135.0,134.93,37.5453]
[1745256829329,7.4084,134.97,134.93,40.9299]
[1745256829528,7.4084,134.97,134.93,33.52]
[1745256830229,0.0537578,134.96,134.94,7.4098]
[1745256830426,0.0537578,134.96,134.93,33.52]
[1745256830823,0.0537578,134.96,134.95,7.4092]
[1745256831630,0.0537578,134.96,134.94,7.4097]
[1745256831930,0.0537578,134.96,134.93,33.52]
[1745256832124,0.0537578,134.96,134.94,7.4098]
[1745256832628,0.0537578,134.96,134.95,7.4092]
[1745256833429,0.0537578,134.96,134.93,33.52]
[1745256833929,0.0537578,134.96,134.93,40.93]
[1745256834428,0.0537578,134.96,134.94,7.4097]
[1745256834829,0.0537578,134.96,134.93,33.52]
[1745256835029,0.0537578,134.96,134.95,7.4092]
[1745256843339,0.0537578,134.96,134.94,7.4096]
[1745256844132,0.0537578,134.96,134.95,7.4092]
[1745256847938,2.93670777,134.96,134.95,7.4092]
[1745256848340,0.0537578,134.96,134.95,7.4092]
[1745256849241,2.93629962,134.96,134.95,7.4092]
[1745256849538,0.0537578,134.96,134.95,7.4092]
[1745256850439,2.93636806,134.96,134.95,7.4092]
[1745256850738,0.0537578,134.96,134.95,7.4092]
[1745256855339,0.0537578,134.96,134.94,7.4095]
[1745256855639,0.0537578,134.96,134.93,33.52]
[1745256856142,0.0537578,134.96,134.94,7.4094]
[1745256856341,2.87679882,134.95,134.94,7.4094]
[1745256857542,2.87558209,134.95,134.94,7.4094]
[1745256858244,0.0537578,134.96,134.94,7.4094]
[1745256858439,2.87419923,134.95,134.94,7.4094]
[1745256858943,0.0537578,134.96,134.94,7.4094]
[1745256860544,0.0537578,134.96,134.95,7.4092]
[1745256860743,2.92576261,134.96,134.95,7.4092]
[1745256861442,390.70066057,135.02,134.97,7.4081]
[1745256861638,7.4064,135.01,134.97,7.4081]
[1745256861839,373.11,135.02,134.93,33.52]
[1745256862044,3.9703,135.02,134.96,17.59066057]
[1745256862234,21.56096057,135.02,134.94,33.44]
[1745256862639,0.05444736,134.99,134.97,0.04801219]
[1745256863746,2.00234736,134.99,134.94,33.44]
[1745256864045,7.4076,134.98,134.94,40.8495]
[1745256865247,7.4076,134.98,134.95,7.4091]
[1745256865748,7.4076,134.98,134.94,40.8495]
[1745256866149,7.4076,134.98,134.94,33.44]
[1745256866549,7.4076,134.98,134.94,40.8495]
[1745256867049,2.00234736,134.99,134.94,40.8495]
[1745256867350,2.00234736,134.99,134.95,7.4092]
[1745256868247,9.40974736,134.99,134.95,7.4092]
[1745256868646,2.00234736,134.99,134.94,40.8496]
[1745256868853,7.4078,134.98,134.94,7.4096]
[1745256869950,7.4083,134.97,134.93,7.41]
[1745256871253,7.4091,134.96,134.92,40.7707]
[1745256871456,17.59066057,134.98,134.92,33.36]
[1745256871753,0.05543417,134.95,134.92,40.7705]
[1745256872058,382.59066057,134.94,134.9,0.27393]
[1745256872256,25.00256057,134.91,134.83,33.36]
[1745256872458,17.59066057,134.91,134.83,33.36]
[1745256872653,0.04928851,134.88,134.83,50.95066057]
[1745256872959,0.04928851,134.88,134.85,17.59066057]
[1745256873146,0.04928851,134.88,134.83,50.95066057]
[1745256873147,0.04928851,134.88,134.87,17.59066057]
[1745256873457,365.0,134.93,134.87,50.95066057]
[1745256873758,17.59066057,134.95,134.89,7.4123]
[1745256873956,17.59066057,134.95,134.87,33.36]
[1745256874156,17.59066057,134.97,134.87,33.36]
[1745256874353,0.05209551,134.92,134.9,0.04734215]
[1745256874557,7.4098,134.94,134.9,0.04734215]
[1745256874758,0.04921319,134.92,134.9,0.04734215]
[1745256875849,0.04921319,134.92,134.9,7.45904215]
[1745256876958,367.0396,134.98,134.91,33.36]
[1745256877153,365.0,134.98,134.92,17.59066057]
[1745256877660,23.79556057,135.03,134.92,17.59066057]
[1745256877857,7.4062,135.01,134.92,17.59066057]
[1745256878156,7.4062,135.01,134.97,7.408]
[1745256878460,0.05195054,134.98,134.97,7.408]
[1745256878968,0.05195054,134.98,134.95,33.41127546]
[1745256879561,0.05195054,134.98,134.96,7.4086]
[1745256879760,0.05195054,134.98,134.95,33.41127546]
[1745256880261,5.054e-05,134.98,134.97,7.4081]
[1745256885760,1.384e-05,135.03,134.97,7.4]
[1745256885966,369.0683,135.13,135.02,17.59066057]
[1745256886168,369.0683,135.13,135.06,17.59066057]
[1745256886362,369.0683,135.13,135.07,33.36]
[1745256886563,4.0683,135.13,135.07,33.36]
[1745256886961,0.05073335,135.11,135.09,7.45098267]
[1745256887159,0.05073335,135.11,135.09,0.04978267]
[1745256887466,0.05073335,135.11,135.1,7.401]
[1745256891668,0.05073335,135.11,135.09,0.04978267]
[1745256892768,7.45123335,135.11,135.09,0.04978267]
[1745256893473,35.52620337,135.11,135.03,33.34]
[1745256893671,4.1459,135.1,135.03,33.34]
[1745256893970,7.4031,135.07,135.03,33.34]
[1745256894574,0.05300518,135.06,135.04,0.05286813]
[1745256895272,0.05300518,135.06,135.05,7.4037]
[1745256895764,365.0,135.1,135.05,28.07547002]
[1745256895969,1.9897,135.14,135.05,28.07547002]
[1745256896169,1.9897,135.14,135.11,7.4001]
[1745256896370,11.544,135.16,135.09,33.34]
[1745256896668,2.0985,135.16,135.09,33.34]
[1745256896871,0.05398345,135.14,135.11,0.05134199]
[1745256897976,7.45278345,135.14,135.11,0.05134199]
[1745256899577,0.05398345,135.14,135.09,40.7413]
[1745256899779,0.05398345,135.14,135.09,33.34]
[1745256900479,7.45308345,135.14,135.09,40.7412]
[1745256900679,7.45308345,135.14,135.1,0.05196676]
[1745256901080,7.45308345,135.14,135.1,7.45286676]
[1745256901282,0.05398345,135.14,135.1,7.45286676]
[1745256901876,7.45308345,135.14,135.1,7.45286676]
[1745256902179,0.05398345,135.14,135.1,0.05196676]
[1745256902581,7.45308345,135.14,135.1,7.45276676]
[1745256903181,7.3993,135.13,135.1,0.05196676]
[1745256903379,365.0,135.13,135.06,33.26]
[1745256903580,28.07547002,135.11,135.03,33.26]
[1745256903782,7.4029,135.07,135.03,33.26]
[1745256903978,7.4029,135.07,135.02,594.005]
[1745256904180,7.4029,135.07,135.02,586.6]
[1745256904374,2.1473,135.09,135.0,33.26]
[1745256904584,0.04824711,135.06,135.03,0.05189586]
[1745256904779,7.404,135.05,135.03,0.05189586]
[1745256904973,0.04824711,135.06,135.0,33.26]
[1745256905680,393.07547002,135.05,134.97,33.26]
[1745256905979,7.405,135.03,134.97,33.26]
[1745256906181,0.04750276,135.02,134.97,33.26]
[1745256906780,0.04750276,135.02,134.98,7.4073]
[1745256906982,0.04750276,135.02,134.97,33.26]
[1745256907280,0.04750276,135.02,134.96,33.28]
[1745256907581,28.12297278,135.02,134.96,33.28]
[1745256907780,28.12297278,135.02,134.93,33.28]
[1745256907781,2.1298,135.01,134.93,33.28]
[1745256907981,9.536,135.01,134.95,7.4087]
[1745256908185,0.05029394,134.98,134.93,33.28]
[1745256908384,0.05029394,134.98,134.97,7.4081]
[1745256908684,0.05029394,134.98,134.93,33.28]
[1745256909082,0.05029394,134.98,134.95,7.4088]
[1745256909285,0.05029394,134.98,134.93,33.28]
[1745256910281,0.05029394,134.98,134.97,7.4081]
[1745256911390,0.05029394,134.98,134.93,33.28]
[1745256912683,0.05029394,134.98,134.95,7.4092]
[1745256912889,0.05029394,134.98,134.93,33.28]
[1745256913189,0.05029394,134.98,134.94,7.4095]
[1745256913394,0.05029394,134.98,134.93,33.28]
[1745256913693,0.05029394,134.98,134.95,7.4089]
[1745256914191,426.35547002,134.97,134.83,14.8307]
[1745256914383,395.09217002,134.97,134.86,33.28]
[1745256914582,0.05184042,134.93,134.86,33.28]
[1745256914791,0.05184042,134.93,134.9,7.4117]
[1745256916393,0.05184042,134.93,134.86,33.28]
[1745256917589,7.4109,134.92,134.87,7.4132]
[1745256917790,0.05184042,134.93,134.87,7.4132]
[1745256917985,7.4111,134.92,134.88,7.413]
[1745256918190,0.05184042,134.93,134.86,33.28]
[1745256918693,0.05184042,134.93,134.87,7.4133]
[1745256919200,0.05184042,134.93,134.86,40.6939]
[1745256919699,7.46244042,134.93,134.86,33.28]
[1745256920101,7.46244042,134.93,134.88,7.4127]
[1745256921003,7.4109,134.92,134.88,7.4127]
[1745256922805,7.46234042,134.93,134.89,7.4122]
[1745256923204,0.05184042,134.93,134.89,7.4122]
[1745256923704,7.4113,134.92,134.88,7.4129]
[1745256924105,7.4113,134.92,134.89,7.4123]
[1745256924306,7.4113,134.92,134.86,33.28]
[1745256924606,0.05184042,134.93,134.86,33.28]
[1745256924805,0.05184042,134.93,134.88,7.4128]
[1745256925106,7.4111,134.92,134.88,7.4128]
[1745256925407,7.4117,134.91,134.88,7.4128]
[1745256925709,0.05184042,134.93,134.88,7.4128]
[1745256925907,7.4114,134.92,134.88,7.4128]
[1745256926209,0.05184042,134.93,134.88,7.4128]
[1745256926404,0.05184042,134.93,134.83,4.0937]
[1745256926405,28.07547002,134.91,134.83,37.3937]
[1745256926605,7.4128,134.89,134.83,37.3937]
[1745256926908,0.05377133,134.88,134.83,33.3]
[1745256927107,7.46687133,134.88,134.83,33.3]
[1745256927311,0.05377133,134.88,134.83,33.3]
[1745256927512,0.05377133,134.88,134.85,7.4146]
[1745256928110,0.05377133,134.88,134.84,7.4151]
[1745256928311,0.05377133,134.88,134.83,33.3]
[1745256930312,7.46687133,134.88,134.84,7.415]
[1745256930703,0.05377133,134.88,134.83,33.3]
[1745256930909,7.46707133,134.88,134.84,7.4149]
[1745256931111,0.05377133,134.88,134.83,33.3]
[1745256931412,0.05377133,134.88,134.85,7.4143]
[1745256932709,0.05377133,134.88,134.83,33.3]
[1745256932913,28.12924135,134.88,134.8,33.28]
[1745256933111,7.4142,134.86,134.8,33.28]
[1745256933317,28.07547002,134.88,134.81,7.4169]
[1745256933518,0.05443767,134.84,134.81,7.4169]
[1745256933817,17.63895863,134.83,134.79,40.6977]
[1745256934117,17.63895863,134.83,134.79,7.4177]
[1745256934918,0.05443767,134.84,134.76,33.28]
[1745256935114,33.28,134.86,134.77,17.63895863]
[1745256935319,0.05231163,134.82,134.76,61.48411718]
[1745256935818,0.05231163,134.82,134.81,7.4164]
[1745256936016,365.0,134.93,134.81,7.42]
[1745256936219,365.0,134.93,134.82,32.24371718]
[1745256936420,7.411,134.92,134.82,32.24371718]
[1745256936618,365.0,134.93,134.82,32.24371718]
[1745256936919,365.0,134.93,134.82,619.26371718]
[1745256937119,0.05569146,134.89,134.86,0.05420116]
[1745256937318,0.05569146,134.89,134.86,33.33420116]
[1745256937521,0.05569146,134.89,134.88,7.4131]
[1745256937917,365.0,134.93,134.86,33.33420116]
[1745256938118,365.0,134.93,134.92,7.4109]
[1745256938319,7.408,134.98,134.91,33.28]
[1745256938518,7.408,134.98,134.93,7.4099]
[1745256938713,35.61151718,134.99,134.91,33.28]
[1745256938914,396.65013411,135.0,134.91,33.28]
[1745256939119,0.04760382,134.96,134.95,7.4092]
[1745256939422,404.05693411,135.0,134.94,0.05659298]
[1745256939623,0.05640128,134.97,134.95,7.4089]
[1745256939819,0.05640128,134.97,134.94,0.05659298]
[1745256940221,0.05640128,134.97,134.96,7.4087]
[1745256940420,0.05640128,134.97,134.95,33.28]
[1745256940616,0.05640128,134.97,134.94,0.05659298]
[1745256941523,28.26051846,134.97,134.94,0.05659298]
[1745256941719,365.0,134.96,134.89,33.28]
[1745256942025,28.20411718,134.93,134.85,33.28]
[1745256942426,398.28,134.92,134.85,33.28]
[1745256942828,7.4123,134.9,134.85,40.6947]
[1745256943028,28.25357553,134.9,134.87,0.04895964]
[1745256943827,7.413,134.89,134.87,0.04895964]
[1745256944829,35.66567553,134.9,134.87,0.04895964]
[1745256946929,7.4127,134.89,134.87,0.04895964]
[1745256947131,7.4127,134.89,134.84,7.4151]
[1745256947324,7.4127,134.89,134.83,620.22]
[1745256947524,0.04945835,134.9,134.83,620.22]
[1745256948219,0.04945835,134.9,134.86,7.4138]
[1745256949129,7.46145835,134.9,134.86,7.4138]
[1745256949325,7.46145835,134.9,134.85,7.4145]
[1745256949730,0.04945835,134.9,134.83,620.22]
[1745256950029,0.04945835,134.9,134.87,7.4133]